bitfinex/quotes_SOLUSD_20260304
["timestamp","ask_amount","ask_price","bid_price","bid_amount"]
[1772637549410,4.18383996,91.327,91.254,4.29693902]
[1772637549642,4.18383996,91.325,91.256,4.29693902]
[1772637550320,38.32340573,91.328,91.237,169.8872168]
[1772637550321,4.18383996,91.315,91.238,4.29693902]
[1772637550519,4.18383996,91.315,91.237,137.00582]
[1772637550520,4.18383996,91.315,91.246,4.29693902]
[1772637551234,4.18383996,91.313,91.247,38.35742544]
[1772637552337,4.18383996,91.313,91.248,4.29693902]
[1772637552731,0.1,91.33,91.264,4.29693902]
[1772637552926,0.1,91.33,91.25,3.69383402]
[1772637552927,0.1,91.33,91.268,4.29693902]
[1772637553126,38.32298611,91.329,91.268,4.29693902]
[1772637553434,0.28432314,91.329,91.269,10.95662273]
[1772637553815,0.1,91.33,91.27,4.29693902]
[1772637554823,4.18383996,91.329,91.27,4.29693902]
[1772637555538,4.18383996,91.327,91.272,4.29693902]
[1772637557019,4.18383996,91.327,91.271,38.34733924]
[1772637557020,4.18383996,91.325,91.255,0.14216157]
[1772637557223,38.32340573,91.328,91.255,0.14216157]
[1772637557224,4.18383996,91.323,91.255,0.14216157]
[1772637557534,4.18383996,91.321,91.252,0.14216157]
[1772637557837,5.28010279,91.32,91.252,0.14216157]
[1772637558044,4.18383996,91.319,91.252,0.14216157]
[1772637558240,5.28010279,91.318,91.252,0.14216157]
[1772637558424,10.9494246,91.329,91.252,0.14216157]
[1772637558629,4.34189801,91.328,91.252,0.14216157]
[1772637558934,4.34189801,91.328,91.255,4.35927713]
[1772637559240,4.34189801,91.328,91.258,3.69383402]
[1772637559436,0.1,91.33,91.277,0.28432314]
[1772637559636,0.1,91.33,91.286,4.07495399]
[1772637560147,0.1,91.34,91.296,4.07495399]
[1772637560537,0.1,91.34,91.298,4.07495399]
[1772637560844,0.04,91.37,91.308,4.07495399]
[1772637560845,4.34189801,91.368,91.308,4.07495399]
[1772637561042,0.04,91.37,91.323,4.07495399]
[1772637561222,4.44189801,91.39,91.328,4.07495399]
[1772637561420,4.44189801,91.39,91.338,4.07495399]
[1772637561827,4.34189801,91.388,91.337,10.94846557]
[1772637562026,4.34189801,91.388,91.299,1.09530224]
[1772637562027,4.34189801,91.379,91.326,10.94978428]
[1772637562633,4.34189801,91.388,91.335,4.07495399]
[1772637563150,4.31845035,91.369,91.31,10.95170298]
[1772637563451,4.31845035,91.347,91.289,3.69383402]
[1772637563645,4.31845035,91.347,91.29,27.38517129]
[1772637563939,4.31845035,91.347,91.291,4.28690094]
[1772637564333,4.31845035,91.339,91.286,10.9545823]
[1772637564534,4.31845035,91.339,91.233,43.84347824]
[1772637564535,4.31845035,91.329,91.269,10.95662273]
[1772637564734,4.31845035,91.309,91.243,4.28690094]
[1772637565145,4.31845035,91.322,91.243,4.28690094]
[1772637565329,4.31845035,91.319,91.243,4.28690094]
[1772637565529,4.31845035,91.317,91.245,4.28690094]
[1772637565933,10.95004974,91.324,91.248,4.57122408]
[1772637566131,10.95004974,91.324,91.244,180.83380822]
[1772637566132,4.31845035,91.348,91.26,0.28432314]
[1772637566446,4.31845035,91.348,91.285,4.28690094]
[1772637566647,4.31845035,91.348,91.256,3.69383402]
[1772637566648,4.31845035,91.348,91.295,4.28690094]
[1772637567351,4.31845035,91.361,91.295,4.28690094]
[1772637567643,4.31845035,91.359,91.297,4.57122408]
[1772637568148,15.26080602,91.388,91.3,4.57122408]
[1772637568349,4.31845035,91.379,91.302,4.57122408]
[1772637568643,4.31845035,91.349,91.296,10.9533824]
[1772637569142,4.31845035,91.349,91.297,4.28690094]
[1772637569452,4.31845035,91.349,91.296,38.33683841]
[1772637569645,4.31845035,91.349,91.286,4.28690094]
[1772637569646,4.31845035,91.339,91.287,10.9544623]
[1772637570242,4.31845035,91.339,91.287,15.24136324]
[1772637570449,4.31845035,91.339,91.288,4.28690094]
[1772637570627,4.31845035,91.339,91.287,38.34061805]
[1772637570828,38.3150151,91.348,91.234,43.84301478]
[1772637570829,4.31845035,91.329,91.276,10.95578246]
[1772637571149,4.31845035,91.319,91.276,38.34523861]
[1772637571631,4.31845035,91.331,91.277,4.28690094]
[1772637571832,4.31845035,91.331,91.285,4.28690094]
[1772637572027,4.31845035,91.35,91.285,4.28690094]
[1772637572440,4.31845035,91.35,91.289,4.28690094]
[1772637572639,4.31845035,91.35,91.274,3.69383402]
[1772637572640,4.31845035,91.35,91.305,4.28690094]
[1772637573040,4.31845035,91.364,91.305,4.28690094]
[1772637573254,4.31845035,91.376,91.324,0.28432314]
[1772637573544,4.31845035,91.376,91.294,3.69383402]
[1772637573545,4.31845035,91.376,91.325,4.28690094]
[1772637573744,4.31845035,91.369,91.303,4.28690094]
[1772637573949,4.31845035,91.369,91.323,0.28432314]
[1772637574132,4.31845035,91.369,91.324,4.28690094]
[1772637574323,4.31845035,91.369,91.299,4.57122408]
[1772637575732,4.31845035,91.369,91.301,4.57122408]
[1772637575929,4.31845035,91.367,91.301,4.57122408]
[1772637577034,4.31845035,91.359,91.3,38.3351588]
[1772637577456,4.31845035,91.359,91.301,4.57122408]
[1772637577750,4.31845035,91.357,91.303,4.42906251]
[1772637577942,4.31845035,91.357,91.303,4.57122408]
[1772637580753,0.1,91.39,91.304,38.33347935]
[1772637580754,4.31845035,91.355,91.304,38.33347935]
[1772637580958,4.31845035,91.329,91.291,10.95398232]
[1772637582642,4.31845035,91.327,91.285,27.38654383]
[1772637582844,4.31845035,91.319,91.276,10.95578246]
[1772637583046,10.94223593,91.389,91.281,4.45581906]
[1772637583249,10.94223593,91.389,91.307,0.14216157]
[1772637583452,10.94223593,91.389,91.313,4.7401422]
[1772637583641,10.94223593,91.389,91.313,4.45581906]
[1772637583841,9.41960932,91.37,91.313,4.45581906]
[1772637584137,0.1,91.39,91.337,4.45581906]
[1772637584341,0.1,91.39,91.339,4.45581906]
[1772637584758,0.1,91.39,91.341,4.45581906]
[1772637585471,27.34610893,91.421,91.34,93.05890079]
[1772637585472,4.31845035,91.43,91.345,4.4]
[1772637585671,4.31845035,91.429,91.359,4.4]
[1772637585874,4.31845035,91.429,91.369,4.4]
[1772637586660,4.31845035,91.428,91.371,4.4]
[1772637586847,4.31845035,91.443,91.374,4.68432314]
[1772637587048,4.31845035,91.459,91.386,4.68432314]
[1772637587660,4.31845035,91.457,91.386,4.68432314]
[1772637587849,4.31845035,91.455,91.386,4.68432314]
[1772637588456,4.48029185,91.463,91.386,4.68432314]
[1772637588749,49.26,91.501,91.404,4.43988954]
[1772637588946,18.21191591,91.5,91.409,4.72421268]
[1772637589146,7.28295417,91.499,91.409,4.72421268]
[1772637589367,7.28295417,91.498,91.409,4.72421268]
[1772637589546,7.28295417,91.497,91.416,0.28432314]
[1772637589747,7.28295417,91.496,91.429,4.43988954]
[1772637589960,9.41960932,91.53,91.413,3.69383402]
[1772637589961,10.92502157,91.533,91.436,0.28432314]
[1772637590159,10.92502157,91.533,91.396,279.00564574]
[1772637590160,7.27526436,91.532,91.439,4.43988954]
[1772637590342,7.27526436,91.531,91.439,4.43988954]
[1772637590546,7.27526436,91.53,91.439,4.43988954]
[1772637590756,4.48029185,91.516,91.432,10.93705076]
[1772637590951,4.48029185,91.513,91.433,4.43988954]
[1772637591167,4.48029185,91.511,91.435,4.43988954]
[1772637591371,4.48029185,91.511,91.439,4.43988954]
[1772637591749,4.48029185,91.511,91.433,4.43988954]
[1772637591950,125.64461148,91.528,91.432,10.93705076]
[1772637591951,4.48029185,91.509,91.432,10.93705076]
[1772637592151,4.48029185,91.503,91.432,10.93705076]
[1772637592353,4.48029185,91.501,91.433,4.43988954]
[1772637592754,4.48029185,91.493,91.422,10.93828618]
[1772637592983,4.48029185,91.489,91.423,4.43988954]
[1772637593277,4.48029185,91.489,91.422,38.28400165]
[1772637593278,4.48029185,91.489,91.429,4.43988954]
[1772637593475,4.48029185,91.507,91.439,4.43988954]
[1772637594171,4.48029185,91.507,91.449,4.43988954]
[1772637594876,4.48029185,91.507,91.422,267.98801159]
[1772637594877,4.48029185,91.506,91.45,38.27227993]
[1772637595054,4.48029185,91.506,91.45,10.93493712]
[1772637595255,4.48029185,91.506,91.451,4.43988954]
[1772637596585,15.40853699,91.506,91.451,4.43988954]
[1772637596755,4.48029185,91.505,91.45,38.27227993]
[1772637596961,4.48029185,91.503,91.45,27.33734281]
[1772637597162,8.99938392,91.628,91.455,2.08980705]
[1772637597361,4.48029185,91.634,91.453,3.69383402]
[1772637597362,4.48029185,91.634,91.622,5.69339477]
[1772637597572,4.48029185,91.632,91.568,0.28432314]
[1772637597762,4.48029185,91.629,91.538,2.19001311]
[1772637597960,4.48029185,91.629,91.543,2.19001311]
[1772637598174,4.48029185,91.629,91.55,2.19001311]
[1772637598483,4.48029185,91.629,91.56,2.19001311]
[1772637598778,4.48029185,91.629,91.54,2.19001311]
[1772637598970,4.48029185,91.629,91.536,75.4201801]
[1772637598971,4.48029185,91.627,91.543,2.47433625]
[1772637599357,4.48029185,91.627,91.546,2.47433625]
[1772637599552,4.48029185,91.627,91.559,2.19001311]
[1772637599758,4.48029185,91.627,91.547,2.19001311]
[1772637599957,4.48029185,91.619,91.547,76.76899008]
[1772637600276,125.50613062,91.629,91.547,8.20100718]
[1772637600277,4.39113404,91.589,91.547,8.20100718]
[1772637600658,9.41960932,91.7,91.558,4.43988954]
[1772637600659,4.34722269,91.634,91.558,4.43988954]
[1772637600876,4.34722269,91.644,91.56,4.72421268]
[1772637601385,4.34722269,91.644,91.579,4.43988954]
[1772637601679,4.34722269,91.649,91.589,4.43988954]
[1772637602178,4.34722269,91.639,91.589,4.43988954]
[1772637602567,4.34722269,91.639,91.574,4.43988954]
[1772637603079,4.34722269,91.609,91.56,58.2943349]
[1772637603271,4.34722269,91.589,91.529,4.43988954]
[1772637603475,4.30375046,91.569,91.497,4.43988954]
[1772637603677,4.30375046,91.559,91.498,4.43988954]
[1772637603863,9.41960932,91.56,91.498,4.43988954]
[1772637604066,9.41960932,91.55,91.498,4.43988954]
[1772637604285,9.41960932,91.54,91.498,4.43988954]
[1772637604552,9.41960932,91.53,91.497,46.63546792]
[1772637604668,9.41960932,91.53,91.423,43.75253462]
[1772637604669,9.41960932,91.51,91.465,4.43988954]
[1772637604875,4.26071295,91.519,91.466,15.37291383]
[1772637605179,10.92681221,91.518,91.469,4.43988954]
[1772637605483,9.41960932,91.55,91.469,4.43988954]
[1772637605692,6.74210737,91.664,91.52,4.43988954]
[1772637605869,6.74210737,91.664,91.519,5.70151213]
[1772637605870,4.17592476,91.669,91.59,4.43988954]
[1772637606260,9.41960932,91.66,91.59,4.43988954]
[1772637606462,4.17592476,91.669,91.59,4.43988954]
[1772637606677,4.17592476,91.669,91.591,0.28432314]
[1772637607075,4.39236846,91.682,91.593,0.28432314]
[1772637607262,4.39236846,91.679,91.593,0.28432314]
[1772637607667,4.39236846,91.669,91.593,0.28432314]
[1772637607860,38.17543247,91.682,91.593,0.28432314]
[1772637608062,4.39236846,91.679,91.593,0.28432314]
[1772637608674,10.90726642,91.682,91.6,4.43988954]
[1772637608995,10.90726642,91.821,91.6,4.43988954]
[1772637608996,9.41960932,91.69,91.601,0.28432314]
[1772637609169,43.60352853,91.736,91.603,0.28432314]
[1772637609368,9.41960932,91.71,91.603,0.28432314]
[1772637609564,3.69383402,91.717,91.603,0.28432314]
[1772637609793,9.41960932,91.72,91.606,0.28432314]
[1772637609987,4.39236846,91.699,91.603,4.43988954]
[1772637610195,4.39236846,91.679,91.603,4.43988954]
[1772637610488,0.28432314,91.688,91.602,10.9167922]
[1772637610489,4.39236846,91.669,91.602,10.9167922]
[1772637610690,4.39236846,91.669,91.602,38.20877272]
[1772637611075,4.39236846,91.669,91.603,4.43988954]
[1772637611279,4.39236846,91.667,91.605,4.43988954]
[1772637611489,4.39236846,91.693,91.609,4.43988954]
[1772637612195,4.39236846,91.679,91.609,4.43988954]
[1772637612398,4.39236846,91.679,91.604,38.20793851]
[1772637612599,4.39236846,91.679,91.604,42.64782805]
[1772637612772,4.39236846,91.679,91.605,4.43988954]
[1772637612973,4.39236846,91.679,91.609,4.43988954]
[1772637613289,43.61226836,91.718,91.609,4.43988954]
[1772637613290,4.39236846,91.677,91.61,38.20543608]
[1772637613483,10.90702688,91.685,91.611,4.43988954]
[1772637613677,4.48029185,91.684,91.611,3.44303409]
[1772637614278,0.14216157,91.719,91.611,3.44303409]
[1772637614603,4.48029185,91.699,91.611,3.44303409]
[1772637615393,4.48029185,91.697,91.612,38.20460201]
[1772637615589,4.48029185,91.697,91.613,4.43988954]
[1772637615801,38.16877139,91.698,91.613,4.43988954]
[1772637615802,4.48029185,91.689,91.613,4.43988954]
[1772637615977,4.48029185,91.669,91.613,4.43988954]
[1772637616173,4.43548893,91.649,91.586,4.43988954]
[1772637616586,9.35795266,91.64,91.586,4.43988954]
[1772637616774,4.43548893,91.649,91.586,4.43988954]
[1772637617589,4.43548893,91.647,91.587,38.2150305]
[1772637617795,4.43548893,91.647,91.587,42.65492004]
[1772637617979,4.43548893,91.629,91.575,10.92001092]
[1772637618170,4.43548893,91.629,91.525,43.70380081]
[1772637618171,4.43548893,91.599,91.546,27.30864522]
[1772637618377,4.20460394,91.644,91.56,4.18639939]
[1772637618877,4.20460394,91.647,91.56,4.18639939]
[1772637619076,4.20460394,91.647,91.568,4.18639939]
[1772637619592,4.20460394,91.645,91.57,4.18639939]
[1772637620379,4.20460394,91.643,91.57,4.18639939]
[1772637621300,43.61825148,91.705,91.578,4.18639939]
[1772637621483,15.11329816,91.67,91.59,4.18639939]
[1772637621685,4.20460394,91.669,91.598,4.18639939]
[1772637621987,3.69383402,91.697,91.599,4.64647918]
[1772637622193,87.2031841,91.74,91.606,0.28432314]
[1772637622194,54.51314311,91.721,91.606,0.28432314]
[1772637622503,9.35795266,91.71,91.619,4.36215604]
[1772637622683,9.35795266,91.7,91.619,4.36215604]
[1772637623003,9.35795266,91.69,91.619,4.36215604]
[1772637623199,3.69383402,91.718,91.619,4.36215604]
[1772637623392,9.35795266,91.71,91.619,4.36215604]
[1772637623596,0.28432314,91.708,91.621,4.40334655]
[1772637623798,0.1,91.73,91.626,4.40334655]
[1772637623977,43.56821142,91.811,91.62,212.83562537]
[1772637623978,1e-08,91.751,91.651,5.10909883]
[1772637624186,10.89300886,91.802,91.667,5.10909883]
[1772637624405,1.31875394,91.83,91.79,5.68742174]
[1772637624581,10.6767066,91.83,91.79,5.45339979]
[1772637624779,10.6767066,91.83,91.706,3.69383402]
[1772637624780,10.89300886,91.802,91.719,0.28432314]
[1772637624984,10.89300886,91.802,91.72,4.40334655]
[1772637625202,1.31875394,91.799,91.72,4.40334655]
[1772637625498,1.31875394,91.799,91.728,4.40334655]
[1772637625699,10.89348351,91.798,91.73,4.40334655]
[1772637625903,1.31875394,91.789,91.73,4.40334655]
[1772637626107,9.35795266,91.75,91.705,17.07860718]
[1772637626400,9.35795266,91.74,91.705,17.07860718]
[1772637626607,1.31875394,91.749,91.705,17.07860718]
[1772637626784,1.31875394,91.764,91.705,21.48195373]
[1772637627105,1.31875394,91.789,91.709,4.40334655]
[1772637627601,38.13134613,91.788,91.711,4.40334655]
[1772637627800,38.13134613,91.788,91.71,38.16377712]
[1772637627801,1.31875394,91.787,91.713,4.40334655]
[1772637628007,16.29869147,91.78,91.713,4.40334655]
[1772637628203,1.31875394,91.769,91.713,4.40334655]
[1772637628408,14.97993753,91.76,91.705,17.07860718]
[1772637628605,1.31875394,91.753,91.705,17.07860718]
[1772637628799,1.31875394,91.753,91.683,4.40334655]
[1772637629110,1.31875394,91.753,91.675,4.40334655]
[1772637629305,0.28432314,91.762,91.66,4.40334655]
[1772637629306,1.31875394,91.728,91.66,4.40334655]
[1772637629518,14.97993753,91.74,91.66,4.40334655]
[1772637629802,14.97993753,91.72,91.662,4.40334655]
[1772637630596,43.59624418,91.752,91.662,4.40334655]
[1772637630597,0.99723222,91.77,91.662,4.40334655]
[1772637630818,0.99723222,91.77,91.661,38.18417865]
[1772637630819,0.99723222,91.77,91.676,4.40334655]
[1772637630989,39.45799485,91.769,91.695,4.40334655]
[1772637631193,39.45799485,91.769,91.699,4.40334655]
[1772637631506,39.45799485,91.769,91.664,1.09094082]
[1772637631507,38.13924091,91.769,91.709,4.40334655]
[1772637631712,38.13924091,91.769,91.661,256.37948525]
[1772637631713,38.13924091,91.769,91.711,4.40334655]
[1772637631883,14.97993753,91.76,91.711,4.40334655]
[1772637632087,1.31875394,91.768,91.693,4.40334655]
[1772637632282,1.31875394,91.749,91.693,4.40334655]
[1772637632611,1.31875394,91.749,91.692,38.17126902]
[1772637632612,10.89300886,91.802,91.721,4.40334655]
[1772637632791,10.89300886,91.802,91.744,0.28432314]
[1772637632988,10.89300886,91.802,91.749,4.40334655]
[1772637633188,14.97993753,91.8,91.749,4.40334655]
[1772637633500,10.89300886,91.802,91.749,4.40334655]
[1772637633912,10.89300886,91.802,91.71,3.69383402]
[1772637633913,10.89300886,91.802,91.751,4.40334655]
[1772637634627,14.97993753,91.8,91.751,4.40334655]
[1772637635222,14.97993753,91.79,91.751,4.40334655]
[1772637635397,14.97993753,91.8,91.751,4.40334655]
[1772637635906,0.2785398,91.803,91.753,4.40334655]
[1772637636304,0.2785398,91.803,91.757,4.40334655]
[1772637637212,10.89300886,91.802,91.757,4.40334655]
[1772637637411,49.08,91.825,91.757,4.40334655]
[1772637637714,14.97993753,91.79,91.743,4.40334655]
[1772637637910,14.97993753,91.77,91.713,4.40334655]
[1772637638100,19.28605419,91.77,91.714,4.40334655]
[1772637638413,10.89573867,91.779,91.714,4.40334655]
[1772637638611,14.97993753,91.79,91.714,4.40334655]
[1772637638911,14.97993753,91.78,91.728,4.40334655]
[1772637639603,4.30611666,91.818,91.728,4.40334655]
[1772637639797,14.97993753,91.8,91.728,4.40334655]
[1772637639992,25.87318977,91.8,91.738,4.40334655]
[1772637640213,14.97993753,91.77,91.729,10.90167776]
[1772637640422,54.46623698,91.8,91.729,10.90167776]
[1772637640423,14.97993753,91.78,91.73,4.40334655]
[1772637640803,4.30611666,91.798,91.734,4.40334655]
[1772637641006,43.53643746,91.878,91.752,4.40334655]
[1772637641201,4.30611666,91.87,91.772,4.40334655]
[1772637641396,14.97993753,91.87,91.789,4.68766969]
[1772637641602,14.97993753,91.85,91.789,4.40334655]
[1772637642109,14.97993753,91.85,91.756,3.69383402]
[1772637642110,14.97993753,91.85,91.791,4.40334655]
[1772637642503,14.97993753,91.83,91.791,4.40334655]
[1772637642716,4.30611666,91.839,91.791,4.40334655]
[1772637643015,14.97993753,91.85,91.791,4.40334655]
[1772637643215,38.10187351,91.859,91.79,10.89443294]
[1772637643216,14.97993753,91.83,91.79,10.89443294]
[1772637643394,14.97993753,91.83,91.778,27.23945004]
[1772637643395,14.97993753,91.81,91.773,10.89638827]
[1772637643600,14.97993753,91.81,91.759,4.40334655]
[1772637643601,4.30611666,91.811,91.759,4.40334655]
[1772637643797,266.71311464,91.859,91.761,4.40334655]
[1772637643798,14.97993753,91.83,91.761,4.40334655]
[1772637644001,19.28605419,91.83,91.763,4.40334655]
[1772637644313,14.97993753,91.83,91.767,4.40334655]
[1772637645122,10.88966364,91.831,91.748,43.59750973]
[1772637645123,4.30611666,91.819,91.752,11.18326812]
[1772637645305,4.30611666,91.819,91.762,27.2443931]
[1772637646201,10.89111067,91.818,91.753,0.28432314]
[1772637646396,10.89111067,91.818,91.742,43.60030047]
[1772637646397,4.30611666,91.817,91.742,43.60030047]
[1772637646608,4.30611666,91.817,91.732,0.14216157]
[1772637647094,4.30611666,91.817,91.736,0.14216157]
[1772637647300,4.30611666,91.817,91.747,4.40334655]
[1772637647496,4.30611666,91.809,91.755,4.40334655]
[1772637647903,4.30611666,91.824,91.757,4.40334655]
[1772637648109,43.53378603,91.883,91.725,223.49414007]
[1772637648110,14.97993753,91.83,91.769,4.40334655]
[1772637648312,19.29705186,91.83,91.769,4.40334655]
[1772637648507,4.31711433,91.819,91.769,4.40334655]
[1772637648835,4.31711433,91.799,91.754,4.17897717]
[1772637649121,9.32067801,91.78,91.753,10.89879005]
[1772637649560,4.31711433,91.789,91.753,10.89879005]
[1772637649736,9.32067801,91.78,91.748,10.89933329]
[1772637649915,4.31711433,91.789,91.748,10.89933329]
[1772637650114,9.32067801,91.79,91.75,38.14713896]
[1772637650415,4.31711433,91.793,91.75,38.14713896]
[1772637650615,4.31711433,91.789,91.75,38.14713896]
[1772637650924,9.32067801,91.8,91.751,4.17897717]
[1772637651144,49.02,91.822,91.75,38.14713896]
[1772637651145,4.31711433,91.818,91.757,4.17897717]
[1772637651313,4.31711433,91.819,91.757,4.17897717]
[1772637652202,3.69383402,91.855,91.759,4.17897717]
[1772637652203,4.31711433,91.817,91.759,4.17897717]
[1772637652526,4.31711433,91.86,91.767,4.17897717]
[1772637652710,4.31711433,91.839,91.767,4.17897717]
[1772637653029,4.31711433,91.839,91.777,4.17897717]
[1772637653427,43.52589575,91.9,91.768,1.37402761]
[1772637653428,4.31711433,91.886,91.779,4.17897717]
[1772637653629,4.31711433,91.869,91.787,4.17897717]
[1772637653809,4.31711433,91.901,91.787,4.17897717]
[1772637654123,43.52165101,91.909,91.792,0.28432314]
[1772637654124,4.31711433,91.859,91.792,0.28432314]
[1772637654333,9.32067801,91.88,91.807,4.17897717]
[1772637654510,9.32067801,91.88,91.817,4.17897717]
[1772637654707,4.31711433,91.906,91.821,4.17897717]
[1772637655030,9.32067801,91.85,91.813,4.17897717]
[1772637655209,4.31711433,91.856,91.799,4.17897717]
[1772637655414,9.32067801,91.83,91.799,4.17897717]
[1772637655614,9.32067801,91.83,91.762,43.59079699]
[1772637655615,9.32067801,91.82,91.773,4.17897717]
[1772637655820,9.32067801,91.84,91.784,0.14216157]
[1772637656128,20.20922182,91.84,91.789,4.17897717]
[1772637656327,20.20922182,91.84,91.788,38.13134613]
[1772637656328,4.31711433,91.894,91.795,4.17897717]
[1772637656533,54.40992436,91.895,91.788,125.28870873]
[1772637656534,9.32067801,91.86,91.801,4.17897717]
[1772637656709,9.32067801,91.86,91.807,4.17897717]
[1772637656911,9.32067801,91.85,91.807,4.17897717]
[1772637657129,9.32067801,91.84,91.807,4.17897717]
[1772637657330,4.31711433,91.857,91.807,4.17897717]
[1772637657542,9.32067801,91.85,91.807,4.17897717]
[1772637657850,4.31711433,91.872,91.807,4.17897717]
[1772637658136,9.32067801,91.86,91.808,38.12303937]
[1772637658326,4.31711433,91.883,91.818,4.17897717]
[1772637658630,9.32067801,91.87,91.818,4.17897717]
[1772637658830,9.32067801,91.88,91.823,0.28432314]
[1772637659012,9.32067801,91.88,91.828,4.17897717]
[1772637659612,4.31711433,91.883,91.838,4.17897717]
[1772637659812,9.32067801,91.89,91.838,4.17897717]
[1772637660019,9.32067801,91.88,91.838,4.17897717]
[1772637660220,38.08404604,91.902,91.84,4.17897717]
[1772637660221,4.31711433,91.894,91.84,4.17897717]
[1772637660441,9.32067801,91.86,91.839,10.8886203]
[1772637660733,4.31711433,91.885,91.839,10.8886203]
[1772637660937,9.32067801,91.85,91.812,4.17897717]
[1772637661114,9.32067801,91.84,91.801,4.17897717]
[1772637661632,4.31711433,91.851,91.801,4.17897717]
[1772637661633,9.32067801,91.85,91.801,4.17897717]
[1772637661821,9.32067801,91.84,91.801,4.17897717]
[1772637662027,4.31711433,91.851,91.801,4.17897717]
[1772637662227,38.08694705,91.895,91.778,43.58325502]
[1772637662228,10.88638937,91.858,91.803,4.17897717]
[1772637662408,9.32067801,91.87,91.803,4.17897717]
[1772637662615,10.88509682,91.869,91.807,4.17897717]
[1772637663033,9.32067801,91.86,91.807,4.17897717]
[1772637663219,9.32067801,91.84,91.802,10.89300886]
[1772637663425,9.32067801,91.81,91.763,4.17897717]
[1772637663931,9.32067801,91.82,91.763,4.17897717]
[1772637664112,13.63779234,91.83,91.763,4.17897717]
[1772637664429,10.88980605,91.829,91.766,0.14216157]
[1772637664629,10.88980605,91.829,91.767,4.17897717]
[1772637665132,4.31711433,91.828,91.767,4.17897717]
[1772637665527,4.31711433,91.819,91.767,4.17897717]
[1772637666036,9.32067801,91.81,91.767,4.17897717]
[1772637666214,4.31711433,91.809,91.767,4.06856717]
[1772637666412,4.31711433,91.779,91.721,10.90262862]
[1772637666618,125.24777275,91.818,91.721,81.76971466]
[1772637666619,9.32067801,91.79,91.721,81.76971466]
[1772637666921,4.31711433,91.817,91.722,1.09025097]
[1772637667134,4.31711433,91.81,91.723,0.14216157]
[1772637667436,4.31711433,91.809,91.723,0.14216157]
[1772637667635,4.31711433,91.809,91.721,223.50388675]
[1772637667636,4.31711433,91.789,91.721,38.15920017]
[1772637667826,4.31711433,91.779,91.721,38.15920017]
[1772637668032,9.32067801,91.77,91.721,38.15920017]
[1772637668235,4.31711433,91.779,91.723,38.15836812]
[1772637668538,4.31711433,91.779,91.724,4.17897717]
[1772637668832,4.31711433,91.779,91.728,4.17897717]
[1772637669043,98.01999607,91.818,91.723,38.15836812]
[1772637669044,9.32067801,91.81,91.729,1.09016777]
[1772637669233,4.31711433,91.809,91.734,4.17897717]
[1772637669540,4.31711433,91.809,91.747,4.17897717]
[1772637670343,15.20933976,91.809,91.749,4.17897717]
[1772637670534,15.20933976,91.809,91.755,4.17897717]
[1772637670840,4.31711433,91.789,91.748,10.89942015]
[1772637671022,9.32067801,91.76,91.726,10.90203431]
[1772637671343,4.31711433,91.759,91.726,38.1571201]
[1772637671541,4.31711433,91.759,91.726,10.90203431]
[1772637671737,4.31711433,91.759,91.674,43.6324945]
[1772637671738,4.31711433,91.749,91.713,10.90357964]
[1772637671924,9.32067801,91.74,91.713,10.90357964]
[1772637672124,4.31711433,91.749,91.713,10.90357964]
[1772637672438,4.31711433,91.747,91.713,10.90357964]
[1772637672636,4.27394318,91.747,91.712,14.54062904]
[1772637672939,20.21872244,91.76,91.714,4.17897717]
[1772637673119,9.32067801,91.75,91.713,38.16252875]
[1772637673323,9.32067801,91.75,91.712,14.54062904]
[1772637673523,9.32067801,91.75,91.712,25.44424912]
[1772637674027,9.32067801,91.75,91.712,14.54062904]
[1772637674227,9.32067801,91.74,91.712,14.54062904]
[1772637674427,4.27394318,91.752,91.713,10.90357964]
[1772637674639,9.32067801,91.74,91.713,10.90357964]
[1772637674937,9.32067801,91.75,91.713,10.90357964]
[1772637675439,9.32067801,91.75,91.713,38.16252875]
[1772637675631,9.32067801,91.76,91.714,4.17897717]
[1772637675941,9.32067801,91.77,91.714,4.17897717]
[1772637676421,10.89811353,91.759,91.715,38.16169655]
[1772637676627,10.89602825,91.777,91.716,4.17897717]
[1772637676830,9.32067801,91.77,91.716,4.17897717]
[1772637677225,9.32067801,91.76,91.716,4.17897717]
[1772637677419,9.32067801,91.77,91.716,4.17897717]
[1772637677624,4.27394318,91.739,91.675,1.09080992]
[1772637677838,4.27394318,91.739,91.611,17.68015497]
[1772637677839,9.32067801,91.72,91.657,4.17897717]
[1772637678018,9.32067801,91.72,91.655,10.91047951]
[1772637678019,4.27394318,91.745,91.661,4.17897717]
[1772637678539,4.27394318,91.745,91.663,4.07301522]
[1772637678540,10.89989536,91.744,91.663,4.07301522]
[1772637678724,9.33489043,91.74,91.68,0.28432314]
[1772637678920,9.33489043,91.73,91.687,4.07301522]
[1772637679238,4.10384607,91.73,91.687,4.07301522]
[1772637679432,9.33489043,91.74,91.687,4.07301522]
[1772637680137,9.33489043,91.73,91.687,4.07301522]
[1772637680641,9.33489043,91.73,91.655,87.28352118]
[1772637680642,10.90167776,91.729,91.688,10.90655265]
[1772637680945,4.10384607,91.728,91.688,10.90655265]
[1772637681140,4.10384607,91.728,91.675,14.98111448]
[1772637681334,9.33489043,91.72,91.675,14.98111448]
[1772637681537,9.33489043,91.71,91.664,4.07301522]